bitfinex/quotes_SOLUSD_20241111
["timestamp","ask_amount","ask_price","bid_price","bid_amount"]
[1731317389549,20.0,210.62,210.55,17.71082841]
[1731317389755,6.475,210.63,210.56,17.71082841]
[1731317390061,23.776884,210.62,210.56,17.71082841]
[1731317390759,28.524884,210.62,210.55,46.71082841]
[1731317390956,46.23571241,210.62,210.55,46.71082841]
[1731317391662,20.0,210.61,210.55,46.71082841]
[1731317392165,24.7482,210.61,210.55,46.71082841]
[1731317396342,20.0,210.59,210.55,29.0]
[1731317396758,23.776884,210.6,210.55,29.0]
[1731317396959,20.0,210.59,210.55,29.0]
[1731317397761,24.7486,210.59,210.55,29.0]
[1731317399661,35.10708205,210.58,210.55,29.0]
[1731317399867,20.0,210.57,210.55,29.0]
[1731317401347,4.7486,210.59,210.56,11.33019805]
[1731317401549,17.80519805,210.63,210.56,11.33019805]
[1731317401769,23.776884,210.61,210.56,29.0]
[1731317401946,20.0,210.6,210.56,29.0]
[1731317402146,43.776884,210.57,210.56,29.0]
[1731317402457,23.776884,210.57,210.52,11.33019805]
[1731317403375,20.0,210.56,210.51,40.33019805]
[1731317403553,20.0,210.56,210.52,11.33019805]
[1731317403960,20.0,210.56,210.51,40.33019805]
[1731317404850,20.0,210.56,210.52,11.33019805]
[1731317405366,20.0,210.56,210.51,40.33019805]
[1731317405669,20.0,210.54,210.51,29.0]
[1731317405971,23.776884,210.51,210.48,29.0]
[1731317406362,35.10708205,210.51,210.48,29.0]
[1731317406563,23.776884,210.49,210.44,40.33019805]
[1731317407459,28.527784,210.49,210.44,40.33019805]
[1731317407657,20.0,210.54,210.48,11.33019805]
[1731317407858,15.9552,210.55,210.51,11.33019805]
[1731317408090,23.776884,210.54,210.52,11.33019805]
[1731317408369,15.9552,210.55,210.52,11.33019805]
[1731317408571,4.749,210.57,210.52,11.33019805]
[1731317408762,4.749,210.57,210.52,46.70638666]
[1731317410177,23.776884,210.56,210.52,46.70638666]
[1731317410374,20.0,210.55,210.52,29.0]
[1731317410671,23.776884,210.54,210.52,29.0]
[1731317410876,61.48327066,210.53,210.52,29.0]
[1731317411268,23.776884,210.52,210.46,29.0]
[1731317411477,37.70638666,210.51,210.46,29.0]
[1731317411780,24.7512,210.47,210.43,29.0]
[1731317411982,4.7512,210.47,210.43,29.0]
[1731317412276,23.776884,210.46,210.43,29.0]
[1731317412475,41.48327066,210.46,210.43,29.0]
[1731317412876,23.776884,210.44,210.39,29.0]
[1731317413178,20.0,210.43,210.39,29.0]
[1731317414273,23.776884,210.42,210.39,29.0]
[1731317414963,23.776884,210.42,210.39,46.70638666]
[1731317415387,23.776884,210.42,210.39,29.0]
[1731317415974,23.776884,210.4,210.39,29.0]
[1731317416581,41.48327066,210.4,210.39,29.0]
[1731317416792,46.23617066,210.4,210.35,29.0]
[1731317417271,23.776884,210.4,210.35,46.70638666]
[1731317417469,28.529784,210.4,210.35,46.70638666]
[1731317417675,20.0,210.39,210.35,29.0]
[1731317418275,23.776884,210.38,210.35,29.0]
[1731317420287,20.0,210.4,210.35,46.70638666]
[1731317420495,23.776884,210.39,210.36,17.70638666]
[1731317420665,20.0,210.4,210.38,17.70638666]
[1731317420864,4.7523,210.43,210.37,17.70638666]
[1731317421089,20.0,210.44,210.38,17.70638666]
[1731317421270,22.45818666,210.45,210.38,17.70638666]
[1731317421465,22.45818666,210.45,210.37,17.70638666]
[1731317421466,17.70638666,210.44,210.37,17.70638666]
[1731317422092,4.7521,210.43,210.37,46.70638666]
[1731317422269,17.70638666,210.42,210.37,29.0]
[1731317422468,20.0,210.4,210.37,29.0]
[1731317422684,23.776884,210.39,210.37,29.0]
[1731317424090,20.0,210.41,210.38,17.70638666]
[1731317424282,20.0,210.41,210.37,46.70638666]
[1731317424475,23.776884,210.4,210.37,29.0]
[1731317425393,23.776884,210.4,210.37,46.70638666]
[1731317425604,24.7523,210.43,210.38,17.70638666]
[1731317425780,4.7518,210.45,210.39,17.70638666]
[1731317425968,16.4222,210.46,210.42,17.70638666]
[1731317426174,16.4222,210.46,210.4,17.70638666]
[1731317426789,17.70638666,210.42,210.39,29.0]
[1731317426995,17.70638666,210.41,210.39,29.0]
[1731317427195,20.0,210.41,210.39,29.0]
[1731317427487,23.776884,210.4,210.39,29.0]
[1731317428394,23.776884,210.4,210.34,29.0]
[1731317428395,4.753,210.39,210.34,29.0]
[1731317428893,41.48327066,210.4,210.34,29.0]
[1731317429686,28.529684,210.4,210.34,46.70638666]
[1731317430992,23.776884,210.4,210.35,17.70638666]
[1731317431297,20.0,210.43,210.38,17.70638666]
[1731317431493,4.752,210.44,210.38,17.70638666]
[1731317431692,20.0,210.45,210.4,17.70638666]
[1731317431902,20.0,210.45,210.41,17.70638666]
[1731317432281,16.4222,210.46,210.42,17.70638666]
[1731317432488,33.49758666,210.51,210.43,17.70638666]
[1731317432695,17.70638666,210.5,210.43,46.70638666]
[1731317432995,17.70638666,210.49,210.43,29.0]
[1731317433603,23.776884,210.47,210.43,29.0]
[1731317433795,20.0,210.46,210.43,29.0]
[1731317436010,24.7516,210.46,210.43,29.0]
[1731317438090,61.48327066,210.44,210.43,29.0]
[1731317438289,20.0,210.41,210.36,29.0]
[1731317438496,23.776884,210.38,210.36,29.0]
[1731317442525,28.530284,210.38,210.34,29.0]
[1731317442697,23.776884,210.36,210.34,29.0]
[1731317443006,20.0,210.35,210.34,29.0]
[1731317443201,43.776884,210.35,210.34,29.0]
[1731317443512,23.776884,210.32,210.3,29.0]
[1731317443806,17.70638666,210.37,210.3,46.70638666]
[1731317444013,43.776884,210.36,210.3,46.70638666]
[1731317444212,43.776884,210.36,210.31,17.70638666]
[1731317444915,43.776884,210.36,210.33,17.70638666]
[1731317445293,43.776884,210.36,210.34,17.70638666]
[1731317445489,43.776884,210.36,210.32,17.70638666]
[1731317448511,48.530584,210.36,210.32,29.0]
[1731317450603,66.23697066,210.36,210.32,29.0]
[1731317450999,17.70638666,210.35,210.32,29.0]
[1731317451302,43.776884,210.33,210.32,29.0]
[1731317454106,24.7546,210.32,210.24,17.70638666]
[1731317454307,23.776884,210.29,210.24,29.0]
[1731317454513,20.0,210.28,210.24,29.0]
[1731317454930,20.0,210.26,210.24,29.0]
[1731317455111,23.776884,210.25,210.21,29.0]
[1731317455312,20.0,210.24,210.21,29.0]
[1731317455708,23.776884,210.23,210.19,29.0]
[1731317456012,23.776884,210.23,210.19,46.70638666]
[1731317457524,23.776884,210.23,210.19,29.0]
[1731317458112,23.776884,210.23,210.19,46.70638666]
[1731317459447,23.776884,210.23,210.19,29.0]
[1731317459615,20.0,210.26,210.2,17.70638666]
[1731317459813,4.7563,210.25,210.2,17.70638666]
[1731317460418,23.776884,210.24,210.2,46.70638666]
[1731317460624,23.776884,210.25,210.21,17.70638666]
[1731317460822,23.776884,210.25,210.2,46.70638666]
[1731317462230,4.7554,210.29,210.24,17.70638666]
[1731317462433,4.7554,210.29,210.25,17.70638666]
[1731317462618,4.7554,210.29,210.24,29.0]
[1731317462819,17.70638666,210.26,210.24,29.0]
[1731317463319,17.70638666,210.27,210.24,29.0]
[1731317463519,43.776884,210.26,210.24,29.0]
[1731317463938,28.533084,210.25,210.24,29.0]
[1731317464234,48.533084,210.25,210.24,29.0]
[1731317466437,48.533084,210.25,210.2,17.70638666]
[1731317466438,43.776884,210.24,210.2,46.70638666]
[1731317467220,43.776884,210.24,210.2,29.0]
[1731317467839,48.533384,210.24,210.2,29.0]
[1731317470239,48.533384,210.24,210.2,46.70638666]
[1731317470542,48.533384,210.24,210.21,17.70638666]
[1731317471240,48.533384,210.24,210.2,46.70638666]
[1731317472017,43.776884,210.22,210.12,50.6851]
[1731317472320,65.043284,210.24,210.12,46.70638666]
[1731317472321,17.70638666,210.19,210.12,46.70638666]
[1731317472530,43.776884,210.18,210.12,46.70638666]
[1731317472732,61.48327066,210.16,210.09,17.70638666]
[1731317473021,20.0,210.2,210.09,17.70638666]
[1731317473022,43.776884,210.14,210.09,29.0]
[1731317473243,43.776884,210.14,210.09,46.70638666]
[1731317473624,43.776884,210.14,210.09,29.0]
[1731317473836,43.776884,210.14,210.09,46.70638666]
[1731317474439,48.535684,210.14,210.1,17.70638666]
[1731317475644,48.535684,210.14,210.09,29.0]
[1731317475645,48.535684,210.14,210.09,46.70638666]
[1731317475847,48.535684,210.14,210.1,17.70638666]
[1731317476630,43.776884,210.14,210.11,17.70638666]
[1731317476825,20.0,210.14,210.11,17.70638666]
[1731317477027,20.0,210.18,210.11,17.70638666]
[1731317477225,4.7577,210.19,210.13,17.70638666]
[1731317478569,17.70638666,210.18,210.11,46.70638666]
[1731317478753,37.70638666,210.17,210.11,29.0]
[1731317478957,20.0,210.15,210.11,29.0]
[1731317479349,23.776884,210.14,210.11,29.0]
[1731317479551,20.0,210.13,210.11,29.0]
[1731317479749,43.776884,210.18,210.12,17.70638666]
[1731317480145,43.776884,210.18,210.11,46.70638666]
[1731317480758,20.0,210.15,210.11,46.70638666]
[1731317481555,20.0,210.18,210.13,17.70638666]
[1731317482170,20.0,210.2,210.13,17.70638666]
[1731317482658,23.776884,210.19,210.13,17.70638666]
[1731317482853,20.0,210.18,210.12,17.70638666]
[1731317483259,20.0,210.16,210.12,17.70638666]
[1731317483454,20.0,210.14,210.11,29.0]
[1731317484484,23.776884,210.13,210.11,29.0]
[1731317484854,48.535984,210.12,210.11,29.0]
[1731317485251,23.776884,210.11,210.08,46.70638666]
[1731317485572,20.0,210.1,210.08,29.0]
[1731317485756,20.0,210.1,210.07,29.0]
[1731317486551,43.776884,210.08,210.07,29.0]
[1731317486755,20.0,210.04,210.02,46.70638666]
[1731317487765,20.0,210.04,210.02,29.0]
[1731317488169,20.0,210.04,210.03,17.70638666]
[1731317488560,4.7603,210.07,210.03,17.70638666]
[1731317488963,23.776884,210.06,210.02,29.0]
[1731317489164,23.776884,210.04,209.99,17.70638666]
[1731317489560,23.776884,210.04,210.0,17.70638666]
[1731317489761,20.0,210.03,210.0,17.70638666]
[1731317490153,20.0,210.03,210.01,17.70638666]
[1731317490576,20.0,210.03,210.0,17.70638666]
[1731317491557,20.0,210.03,209.99,17.70638666]
[1731317491969,24.7613,210.03,209.99,17.70638666]
[1731317492160,20.0,210.01,209.97,17.70638666]
[1731317492365,20.0,210.01,209.99,17.70638666]
[1731317492568,20.0,210.01,209.98,17.70638666]
[1731317492761,20.0,210.01,209.97,46.70638666]
[1731317492971,20.0,209.99,209.97,29.0]
[1731317493159,20.0,209.97,209.9,17.70638666]
[1731317493368,20.0,209.95,209.9,29.0]
[1731317493684,20.0,209.95,209.91,17.70638666]
[1731317494276,20.0,209.93,209.9,17.70638666]
[1731317494583,17.70638666,209.97,209.83,6.2742]
[1731317494584,43.776884,209.99,209.92,17.70638666]
[1731317494793,43.776884,209.99,209.94,17.70638666]
[1731317494968,4.7609,210.05,209.98,17.70638666]
[1731317495166,4.7609,210.05,209.91,45.0398]
[1731317495582,17.70638666,210.04,209.97,17.70638666]
[1731317495885,22.46728666,210.05,209.98,17.70638666]
[1731317496180,20.0,210.04,209.98,17.70638666]
[1731317496379,61.48327066,210.04,209.97,17.70638666]
[1731317496589,43.776884,210.04,209.98,17.70638666]
[1731317497487,4.7612,210.03,209.97,17.70638666]
[1731317497692,20.0,210.01,209.97,17.70638666]
[1731317498678,28.538484,210.02,209.97,17.70638666]
[1731317498880,28.538484,210.02,209.88,17.70638666]
[1731317498881,23.776884,209.98,209.95,17.70638666]
[1731317499193,20.0,209.97,209.94,17.70638666]
[1731317499575,20.0,209.97,209.93,17.70638666]
[1731317500874,20.0,209.95,209.88,29.0]
[1731317501076,20.0,209.93,209.9,17.70638666]
[1731317502187,23.776884,209.92,209.89,17.70638666]
[1731317502387,23.776884,209.92,209.9,17.70638666]
[1731317502595,20.0,209.96,209.9,17.70638666]
[1731317502801,23.776884,209.95,209.91,17.70638666]
[1731317503093,20.0,209.94,209.91,17.70638666]
[1731317503287,23.776884,209.93,209.9,29.0]
[1731317503684,23.776884,209.93,209.9,46.70638666]
[1731317505196,23.776884,209.93,209.9,29.0]
[1731317506675,41.48327066,209.91,209.83,29.0]
[1731317506875,41.48327066,209.91,209.83,46.70638666]
[1731317506876,41.48327066,209.89,209.83,46.70638666]
[1731317507178,20.0,209.88,209.83,46.70638666]
[1731317507495,20.0,209.86,209.83,46.70638666]
[1731317508087,20.0,209.89,209.83,46.70638666]
[1731317508277,20.0,209.87,209.83,46.70638666]
[1731317508879,20.0,209.87,209.83,17.70638666]
[1731317509204,20.0,209.88,209.86,17.70638666]
[1731317509700,20.0,209.86,209.82,17.70638666]
[1731317509889,20.0,209.86,209.77,35.3223]
[1731317510085,20.0,209.86,209.85,17.70638666]
[1731317510399,43.776884,209.86,209.84,17.70638666]
[1731317510582,43.776884,209.86,209.77,35.3223]
[1731317510583,23.776884,209.85,209.77,35.3223]
[1731317510905,23.776884,209.85,209.82,17.70638666]
[1731317511077,23.776884,209.85,209.83,17.70638666]
[1731317511280,23.776884,209.85,209.82,29.0]
[1731317511681,23.776884,209.85,209.83,17.70638666]
[1731317512087,20.0,209.88,209.84,17.70638666]
[1731317512286,20.0,209.86,209.84,17.70638666]
[1731317512481,23.776884,209.87,209.84,17.70638666]
[1731317512693,20.0,209.86,209.84,17.70638666]
[1731317513386,23.776884,209.88,209.83,17.70638666]
[1731317513581,20.0,209.87,209.83,17.70638666]
[1731317514088,20.0,209.87,209.83,46.70638666]
[1731317514708,20.0,209.87,209.83,29.0]
[1731317514901,20.0,209.87,209.83,46.70638666]
[1731317515206,20.0,209.87,209.85,17.70638666]
[1731317515590,20.0,209.87,209.86,17.70638666]
[1731317516194,27.3931,209.95,209.86,17.70638666]
[1731317516398,22.6301,209.95,209.92,17.70638666]
[1731317516609,16.1119,209.95,209.92,17.70638666]
[1731317516800,20.8749,209.95,209.9,17.70638666]
[1731317517707,23.776884,209.94,209.9,17.70638666]
[1731317518310,23.776884,209.94,209.92,17.70638666]
[1731317518518,23.776884,209.94,209.9,17.70638666]
[1731317518685,23.776884,209.94,209.89,17.70638666]
[1731317518891,28.540184,209.94,209.89,17.70638666]
[1731317519089,28.540184,209.94,209.9,17.70638666]
[1731317520112,23.776884,209.94,209.9,17.70638666]
[1731317520307,23.776884,209.94,209.91,17.70638666]
[1731317520902,20.0,209.94,209.91,17.70638666]
[1731317521305,21.252,210.0,209.93,17.70638666]
[1731317521522,23.776884,209.99,209.96,17.70638666]
[1731317521691,4.7612,210.04,209.97,17.70638666]
[1731317522018,16.1737,210.05,209.99,17.70638666]
[1731317522216,20.9345,210.05,209.99,17.70638666]
[1731317522421,16.1737,210.05,210.0,17.70638666]
[1731317522596,16.1737,210.05,209.99,29.0]
[1731317522797,33.88008666,210.05,209.99,29.0]
[1731317523010,16.1737,210.05,210.0,17.70638666]
[1731317524308,20.0,210.03,210.0,17.70638666]
[1731317524510,20.0,210.03,210.01,17.70638666]
[1731317525127,33.60208666,210.1,210.02,17.70638666]
[1731317525329,4.76,210.09,210.03,17.70638666]
[1731317525627,4.76,210.09,210.02,46.70638666]
[1731317525807,4.76,210.09,210.02,29.0]
[1731317525808,17.70638666,210.08,210.02,29.0]
[1731317526331,43.776884,210.08,210.02,29.0]
[1731317526536,43.776884,210.08,210.02,46.70638666]
[1731317527237,48.537084,210.08,210.02,29.0]
[1731317528936,48.537084,210.08,210.02,46.70638666]
[1731317529727,43.776884,210.08,210.02,46.70638666]
[1731317529930,20.0,210.09,210.04,17.70638666]
[1731317530107,17.70638666,210.14,210.06,17.70638666]
[1731317530310,4.7585,210.15,210.08,17.70638666]
[1731317530512,15.0491,210.16,210.09,17.70638666]
[1731317530714,15.0491,210.16,210.11,17.70638666]
[1731317531136,33.47458666,210.21,210.13,17.70638666]
[1731317531440,33.47458666,210.21,210.13,46.70638666]
[1731317531732,4.7577,210.19,210.13,46.70638666]
[1731317532433,23.776884,210.18,210.13,46.70638666]
[1731317532738,20.0,210.17,210.13,46.70638666]
[1731317532911,17.70638666,210.25,210.16,17.70638666]
[1731317533112,4.7562,210.25,210.18,17.70638666]
[1731317533530,17.70638666,210.24,210.17,17.70638666]
[1731317533826,17.70638666,210.22,210.15,17.70638666]
[1731317534037,17.70638666,210.21,210.13,46.70638666]
[1731317534327,20.0,210.18,210.13,29.0]
[1731317534560,23.776884,210.17,210.13,29.0]
[1731317534725,20.0,210.16,210.13,29.0]
[1731317534925,23.776884,210.17,210.13,29.0]
[1731317535122,20.0,210.16,210.13,29.0]
[1731317536114,37.70638666,210.24,210.15,17.70638666]
[1731317536316,4.757,210.22,210.17,17.70638666]
[1731317536935,4.7565,210.24,210.19,17.70638666]
[1731317537320,4.7565,210.24,210.18,17.70638666]
[1731317537530,4.7565,210.24,210.19,17.70638666]
[1731317537927,4.7565,210.24,210.19,46.70638666]
[1731317538128,4.7565,210.24,210.2,17.70638666]
[1731317538344,4.7565,210.24,210.2,46.70638666]
[1731317538931,23.776884,210.23,210.2,46.70638666]
[1731317539127,20.0,210.3,210.22,17.70638666]
[1731317539450,15.0008,210.31,210.29,17.70638666]
[1731317539834,4.7542,210.34,210.29,17.70638666]
[1731317540635,4.7542,210.34,210.28,17.70638666]
[1731317540833,24.7546,210.32,210.25,17.70638666]
[1731317541034,24.7546,210.32,210.26,17.70638666]
[1731317541035,20.0,210.3,210.26,17.70638666]
[1731317541733,20.0,210.28,210.23,17.70638666]
[1731317542029,23.776884,210.27,210.23,29.0]
[1731317542229,20.0,210.28,210.23,29.0]
[1731317542434,23.776884,210.27,210.23,29.0]
[1731317542659,20.0,210.26,210.23,29.0]
[1731317542830,20.0,210.26,210.24,17.70638666]
[1731317543232,20.0,210.26,210.23,46.70638666]
[1731317543451,20.0,210.26,210.23,29.0]
[1731317543830,20.0,210.26,210.23,46.70638666]
[1731317544050,4.7539,210.35,210.25,17.70638666]
[1731317544262,4.7539,210.35,210.29,17.70638666]
[1731317544764,4.7539,210.35,210.28,17.70638666]
[1731317545246,4.7544,210.33,210.27,17.70638666]
[1731317545833,4.7544,210.33,210.25,29.0]
[1731317545834,20.0,210.31,210.26,17.70638666]
[1731317546145,20.0,210.31,210.27,17.70638666]
[1731317546530,20.0,210.31,210.28,17.70638666]
[1731317546940,20.0,210.31,210.27,17.70638666]
[1731317548361,20.0,210.31,210.29,17.70638666]
[1731317549037,4.7542,210.34,210.3,17.70638666]
[1731317549239,8.88599805,210.36,210.3,29.0]
[1731317549462,8.88599805,210.36,210.35,17.70638666]
[1731317549761,4.7522,210.43,210.35,46.70638666]
[1731317549966,4.7522,210.43,210.38,17.70638666]
[1731317550140,4.7522,210.43,210.39,17.70638666]
[1731317550467,15.377,210.46,210.42,17.70638666]
[1731317550639,17.70638666,210.52,210.45,17.70638666]
[1731317550839,15.9577,210.53,210.46,17.70638666]
[1731317551040,15.9577,210.53,210.5,17.70638666]
[1731317551340,4.7498,210.54,210.5,46.70638666]
[1731317551537,4.7492,210.56,210.5,46.70638666]
[1731317551955,4.7492,210.56,210.5,29.0]
[1731317552254,17.70638666,210.51,210.5,29.0]
[1731317552761,37.70638666,210.51,210.5,29.0]
[1731317553466,61.48327066,210.51,210.5,29.0]
[1731317554561,66.23357066,210.51,210.5,29.0]
[1731317554761,76.88353184,210.51,210.5,29.0]
[1731317555153,43.776884,210.5,210.42,29.0]
[1731317555344,28.35634784,210.46,210.42,29.0]
[1731317555547,43.776884,210.47,210.42,29.0]
[1731317555758,28.35634784,210.46,210.42,29.0]
[1731317556056,20.0,210.44,210.42,29.0]
[1731317556441,20.0,210.45,210.42,29.0]
[1731317556650,24.7516,210.46,210.42,29.0]
[1731317556851,20.0,210.44,210.42,29.0]
[1731317558061,28.35634784,210.49,210.42,57.35634784]
[1731317558265,23.776884,210.49,210.44,28.35634784]
[1731317558562,28.35634784,210.49,210.42,29.0]
[1731317559457,43.776884,210.48,210.42,29.0]
[1731317559651,23.776884,210.46,210.42,29.0]
[1731317560260,23.776884,210.45,210.42,29.0]
[1731317560462,52.13323184,210.45,210.42,29.0]
[1731317560655,23.776884,210.45,210.42,29.0]
[1731317562163,24.7512,210.48,210.38,29.0]
[1731317562164,20.0,210.42,210.38,29.0]
[1731317562369,20.0,210.4,210.38,29.0]
[1731317562744,33.10824784,210.44,210.38,29.0]
[1731317562950,4.7519,210.44,210.38,57.35634784]
[1731317563669,20.0,210.44,210.4,28.35634784]
[1731317564751,4.7512,210.48,210.42,28.35634784]
[1731317564982,20.6317,210.52,210.46,28.35634784]
[1731317565182,20.6317,210.52,210.42,29.0]
[1731317565183,28.35634784,210.55,210.48,28.35634784]
[1731317565352,28.35634784,210.55,210.48,57.35634784]
[1731317565555,28.35634784,210.54,210.48,29.0]
[1731317566370,20.0,210.52,210.48,29.0]
[1731317567578,4.7495,210.55,210.49,28.35634784]
[1731317567753,20.0,210.53,210.48,57.35634784]
[1731317568970,23.776884,210.52,210.48,29.0]
[1731317569172,28.35634784,210.5,210.48,29.0]
[1731317569481,72.13323184,210.49,210.43,29.0]
[1731317569776,20.0,210.46,210.43,29.0]
[1731317569978,23.776884,210.49,210.44,28.35634784]
[1731317570153,20.0,210.49,210.45,28.35634784]
[1731317570349,20.0,210.49,210.43,57.35634784]
[1731317571157,24.7508,210.49,210.43,57.35634784]
[1731317571676,24.7508,210.49,210.44,28.35634784]
[1731317572057,24.7508,210.49,210.43,57.35634784]
[1731317572870,24.7508,210.49,210.43,29.0]
[1731317572871,53.10714784,210.49,210.43,29.0]
[1731317573074,20.0,210.47,210.43,29.0]
[1731317574255,53.10714784,210.49,210.43,29.0]
[1731317574573,24.7508,210.49,210.43,29.0]
[1731317574761,42.47369475,210.49,210.43,29.0]
[1731317575769,24.7508,210.49,210.43,46.72289475]
[1731317576077,24.7506,210.5,210.43,46.72289475]
[1731317576558,20.0,210.48,210.43,29.0]
[1731317577478,17.72289475,210.46,210.43,29.0]
[1731317577669,20.0,210.45,210.43,29.0]
[1731317578655,20.0,210.46,210.43,29.0]
[1731317580173,4.7514,210.47,210.43,29.0]
[1731317580762,20.0,210.48,210.43,29.0]
[1731317581064,4.751,210.48,210.43,46.72289475]
[1731317581280,4.751,210.48,210.43,29.0]
[1731317582384,37.72289475,210.47,210.43,29.0]
[1731317582572,17.72289475,210.46,210.43,29.0]
[1731317583081,17.72289475,210.45,210.43,29.0]
[1731317583381,4.751,210.48,210.43,29.0]
[1731317583586,20.0,210.46,210.43,29.0]
[1731317583766,37.72289475,210.46,210.43,29.0]
[1731317584172,37.72289475,210.44,210.39,29.0]
[1731317584363,4.7521,210.43,210.39,29.0]
[1731317584979,20.0,210.42,210.39,29.0]
[1731317585766,37.72289475,210.4,210.39,29.0]
[1731317585973,23.776884,210.39,210.33,29.0]
[1731317586167,37.72289475,210.38,210.33,29.0]
[1731317586474,20.0,210.36,210.33,29.0]
[1731317587375,17.72289475,210.35,210.33,29.0]
[1731317587687,37.72289475,210.34,210.28,29.0]
[1731317587879,20.0,210.34,210.28,46.72289475]
[1731317588077,20.0,210.35,210.29,17.72289475]
[1731317588266,20.0,210.35,210.3,17.72289475]
[1731317588467,20.0,210.37,210.32,17.72289475]
[1731317588770,20.0,210.38,210.34,17.72289475]
[1731317589087,17.72289475,210.38,210.34,29.0]
[1731317589405,37.72289475,210.35,210.34,29.0]
[1731317589680,37.72289475,210.35,210.27,46.72289475]
[1731317589888,20.0,210.33,210.27,46.72289475]
[1731317590091,17.72289475,210.32,210.27,29.0]
[1731317592886,22.47669475,210.36,210.29,17.72289475]
[1731317593475,4.7538,210.36,210.3,17.72289475]
[1731317593675,17.72289475,210.38,210.31,17.72289475]
[1731317593876,20.0,210.37,210.31,17.72289475]
[1731317594092,22.47629475,210.38,210.31,17.72289475]
[1731317594271,15.5656,210.43,210.34,17.72289475]
[1731317594467,22.47519475,210.42,210.35,17.72289475]
[1731317594672,4.7523,210.42,210.35,17.72289475]
[1731317595089,4.7523,210.42,210.35,46.72289475]
[1731317595394,22.47519475,210.42,210.35,46.72289475]
[1731317595596,4.7523,210.42,210.35,46.72289475]
[1731317595896,38.04069475,210.43,210.36,17.72289475]
[1731317596189,38.04069475,210.43,210.35,46.72289475]
[1731317596570,20.0,210.42,210.35,46.72289475]
[1731317596778,37.72289475,210.42,210.35,46.72289475]
[1731317596976,20.0,210.42,210.35,46.72289475]
[1731317597177,17.72289475,210.46,210.39,17.72289475]
[1731317597388,17.72289475,210.47,210.4,17.72289475]
[1731317597791,22.47429475,210.47,210.4,17.72289475]
[1731317598002,22.47429475,210.47,210.39,46.72289475]
[1731317598684,20.0,210.46,210.39,46.72289475]
[1731317599091,24.7514,210.47,210.41,17.72289475]
[1731317599279,20.0,210.47,210.41,46.72289475]
[1731317599475,17.72289475,210.51,210.43,17.72289475]
[1731317599685,4.7501,210.52,210.48,17.72289475]
[1731317599979,20.5751,210.53,210.48,46.72289475]
[1731317600183,17.72289475,210.56,210.49,17.72289475]
[1731317600683,17.72289475,210.57,210.5,17.72289475]
[1731317600875,17.72289475,210.57,210.5,46.72289475]
[1731317601285,4.7493,210.56,210.5,46.72289475]
[1731317601494,17.72289475,210.53,210.5,29.0]
[1731317601797,17.72289475,210.52,210.5,29.0]
[1731317601992,20.0,210.5,210.45,29.0]
[1731317602297,17.72289475,210.46,210.43,29.0]
[1731317602594,20.0,210.46,210.43,29.0]
[1731317602976,20.0,210.44,210.43,29.0]
[1731317603184,28.36245691,210.49,210.41,28.36245691]
[1731317603384,43.776884,210.48,210.42,28.36245691]
[1731317603602,48.527984,210.48,210.42,28.36245691]
[1731317603778,76.89044091,210.48,210.41,57.36245691]
[1731317604179,48.36245691,210.46,210.41,29.0]
[1731317604393,28.36245691,210.44,210.41,29.0]
[1731317604596,43.776884,210.45,210.41,29.0]
[1731317604799,72.13934091,210.45,210.41,29.0]
[1731317605804,15.8251,210.58,210.45,0.1]
[1731317606098,20.5739,210.58,210.52,28.36245691]
[1731317606300,28.36245691,210.56,210.52,29.0]
[1731317606502,28.36245691,210.54,210.52,29.0]
[1731317607402,20.0,210.53,210.52,29.0]